Cogmind - Beta 13 @@@ ROGUE MODE // 2024.03.08 @ 19:53:38 Player: Baxter Result: Destroyed self with Subdweller Shrapnel Launcher Performance ------------- Evolutions (0) 0 Regions Visited (2) 400 Robots Destroyed (28) 140 Value Destroyed (562) 562 Prototype IDs (0) 0 Alien Tech Used (0) 0 Bonus (0) 0 TOTAL SCORE: 1102 Bonus ------- None Cogmind --------- Core Integrity 0/250 Matter 133/300 Energy 250/250 System Corruption 0% Temperature Cool (0) Movement Core (1600) Ox31 Location -10/Subcaves Parts ------- > --- POWER (1) -------- Ion Engine > --- PROPULSION (2) --- (None) > --- UTILITY (2) ------ Huge Storage Unit Improved Terrain Scanner > --- WEAPON (2) ------- Subdweller Shrapnel Launcher > --- INVENTORY (25) --- Ion Engine Light Ion Engine Light Treads Aluminum Leg Aluminum Leg Aluminum Leg Wheel Medium Storage Unit Large Matter Pod (41) Structural Scanner Visual Processing Unit Sensor Array Improved Terrain Scanner ECM Suite Assault Rifle Assault Rifle Assault Rifle Assault Rifle Assault Rifle Assault Rifle Assault Rifle Light Assault Rifle Battle Cannon Hammer Peak State ------------ > --- POWER ------------ Ion Engine > --- PROPULSION ------- Wheel Subdweller Monowheel > --- UTILITY ---------- Huge Storage Unit Improved Terrain Scanner > --- WEAPON ----------- Grenade Launcher Subdweller Shrapnel Launcher > --- INVENTORY -------- Ion Engine Light Ion Engine Light Treads Aluminum Leg Aluminum Leg Aluminum Leg Wheel Medium Storage Unit Large Matter Pod Structural Scanner Visual Processing Unit Sensor Array Improved Terrain Scanner ECM Suite Assault Rifle Assault Rifle Assault Rifle Assault Rifle Assault Rifle Assault Rifle Assault Rifle Light Assault Rifle Battle Cannon Hammer [Rating: 13] Favorites ----------- Power Ion Engine Engine Ion Engine Propulsion Wheel Leg Aluminum Leg Wheel Wheel Utility Huge Storage Unit Device Improved Terrain Scanner Storage Huge Storage Unit Weapon Assault Rifle Ballistic Gun Assault Rifle Launcher Grenade Launcher Impact Weapon Hammer Build | -11 -10 -10 ------- Run | Yrd Mat Sub Slots Evolved . | . . . Power . | . . . Propulsion . | . . . Utility . | . . . Weapon . | . . . Parts Attached 33 | 6 22 5 Power 3 | 1 2 . Engine 3 | 1 2 . Core . | . . . Reactor . | . . . Propulsion 10 | 2 7 1 Treads . | . . . Leg 2 | . 2 . Wheel 8 | 2 5 1 Hover . | . . . Flight . | . . . Utility 4 | 1 2 1 Device 2 | 1 . 1 Storage 2 | . 2 . Processor . | . . . Hackware . | . . . Protection . | . . . Artifact . | . . . Weapon 16 | 2 11 3 Energy Gun . | . . . Energy Cannon . | . . . Ballistic Gun 11 | 2 8 1 Ballistic Cannon . | . . . Launcher 4 | . 2 2 Special Weapon . | . . . Impact Weapon 1 | . 1 . Slashing Weapon . | . . . Piercing Weapon . | . . . Special Melee Weapon . | . . . Unidentified Prototypes . | . . . Parts Lost 8 | . 4 4 Power 2 | . 2 . Propulsion 5 | . 2 3 Utility . | . . . Weapon 1 | . . 1 Highest Loss Streak 3 | . 3 3 To Critical Strikes . | . . . Average Slot Usage (%) 89 | . 87 97 Engine 9 | . 8 14 Leg 6 | . 7 . Wheel 19 | . 18 26 Device 2 | . 1 7 Storage 24 | . 25 20 Ballistic Gun 22 | . 23 14 Launcher 1 | . . 3 Impact Weapon 2 | . 1 9 Naked Turns . | . . . Heaviest Build 97 | 8 93 97 Greatest Support 30 | 20 20 30 Greatest Overweight (x) 27 | . 27 9 Average Overweight (x) 4 | . 4 4 Largest Inventory Capacity 25 | 5 25 25 Average Capacity 22 | 5 23 25 Most Carried 25 | 5 25 24 Average Carried 14 | 2 13 22 Final Capacity 25 | 5 25 25 Final Carried 24 | 4 22 24 Class Distribution -------------------- 96% | Mutant 3% | Scavenger-Mutant Dominant Class ---------------- Mutant | -10/Materials Mutant | -10/Subcaves Resources | -11 -10 -10 ----------- Run | Yrd Mat Sub Matter Collected 983 | 290 628 65 Remotely . | . . . Salvage Created 800 | 39 635 126 Parts 52 | 3 40 9 Haulers Intercepted 2 | . 2 . Recyclers Shooed . | . . . Parts Field Recycled . | . . . Retrieved Matter . | . . . Parts Self-Destructed 7 | . . 7 Prevented . | . . . Kills | -11 -10 -10 ------- Run | Yrd Mat Sub Combat Hostiles Destroyed 18 | 1 13 4 Guns 9 | 1 8 . AOE 9 | . 5 4 Classes Destroyed 10 | 1 8 1 Worker 3 | . 3 . Builder 1 | . 1 . Tunneler 1 | . 1 . Hauler 2 | . 2 . Recycler 1 | . 1 . Operator 1 | . 1 . Watcher 1 | . 1 . Swarmer 6 | . 6 . Grunt 8 | 1 7 . Subdweller 4 | . . 4 Best Kill Streak 3 | 1 3 3 Combat Bots Only 3 | 1 3 3 Max Kills in Single Turn 3 | 1 3 1 Gunslinging . | . . . Exploded 3 | . 3 1 Melee . | . . . Uniques/NPCs Destroyed . | . . . Combat | -11 -10 -10 -------- Run | Yrd Mat Sub Hostile Shots Fired 86 | 6 68 12 Missed 22 | 1 19 2 Damage Taken 1071 | 53 597 421 Core 263 | 11 89 163 Absorbed by Shields . | . . . Core Remaining (%) 95 | 95 . . Volleys Fired 77 | 5 61 11 Largest 2 | 2 2 2 Hottest 70 | 40 50 70 Shots Fired 141 | 10 115 16 Gun 123 | 10 109 4 Cannon . | . . . Launcher 18 | . 6 12 Special . | . . . Kinetic 130 | 10 109 11 Thermal . | . . . Explosive 11 | . 6 5 Electromagnetic . | . . . Robot Hit Streak 11 | 5 11 7 Robot Miss Streak 8 | 2 8 2 Penetration Max . | . . . Secondary Targets 1 | . 1 . Max Gunslinging Chain 1 | . 1 . Shots Hit Robots 84 | 6 68 10 Core Hits 42 | 2 32 8 Critical Kills . | . . . Critical Parts Destroyed 1 | . 1 . Critical Strikes 1 | . 1 . Destroy 1 | . 1 . Melee Attacks 2 | . 2 . Impact 2 | . 2 . Slashing . | . . . Piercing . | . . . Sneak Attacks . | . . . Combat Hostiles . | . . . Follow-up Attacks . | . . . Damage Inflicted 1688 | 72 1120 496 Guns 912 | 72 808 32 Cannons . | . . . Explosions 776 | . 312 464 Melee . | . . . Ramming . | . . . Kinetic 1199 | 72 808 319 Thermal . | . . . Explosive 489 | . 312 177 Electromagnetic . | . . . Impact . | . . . Slashing . | . . . Piercing . | . . . Highest Corruption . | . . . Average Corruption . | . . . Corruption Purged . | . . . Corruption Blocked . | . . . Overload Shots . | . . . Overflow Damage 14 | . 10 4 Projectiles . | . . . Explosions 14 | . 10 4 Melee . | . . . Knockbacks . | . . . Impact . | . . . Kinetic . | . . . Secondary . | . . . Self-Inflicted Damage 238 | . 45 193 Shots 8 | . 2 6 Rammed . | . . . Targets Rammed . | . . . Kicked . | . . . Crushed . | . . . Highest Temperature 12 | . 12 . Average Temperature 2 | . 2 . Received Heat Transfer 309 | 30 219 60 Siege Activations . | . . . Robots Corrupted . | . . . Combat Hostiles . | . . . Parts Fried . | . . . Impact Corruptions . | . . . Robots Melted . | . . . Combat Hostiles . | . . . Parts Melted . | . . . Heat Transferred . | . . . Parts Sabotaged . | . . . Parts Stolen . | . . . Parts Stripped . | . . . Power Chain Reactions . | . . . Alert | -11 -10 -10 ------- Run | Yrd Mat Sub Peak Influence 182 | 20 182 . Initial 13 | . 13 . Average 88 | 4 93 . Maximum Alert Level . | . . . Low Security (%) 100 | 100 100 . Level 1 . | . . . Level 2 . | . . . Level 3 . | . . . Level 4 . | . . . Level 5 . | . . . High Security . | . . . Max Security . | . . . Squads Dispatched 3 | . 3 . Investigation 1 | . 1 . Extermination . | . . . Reinforcement 2 | . 2 . Assault . | . . . Garrison . | . . . Intercept . | . . . Searches Triggered . | . . . Construction Impeded . | . . . Haulers Reinforced . | . . . Active Scanning Responses . | . . . Cargo Convoy Interrupts . | . . . Stealth | -11 -10 -10 --------- Run | Yrd Mat Sub Distress Signals 2 | . 2 . Communications Jammed . | . . . Distress Signals . | . . . Times Spotted 27 | 1 20 6 Peak Tracking Total 3 | 1 3 2 Tactical Retreats 3 | . 3 . Traps | -11 -10 -10 ------- Run | Yrd Mat Sub Traps Triggered 4 | . 4 . Indirectly . | . . . Trap Hack Attempts . | . . . Triggered . | . . . Disarmed . | . . . Reprogrammed . | . . . Reused . | . . . Traps Extracted . | . . . Installed . | . . . Triggered . | . . . Machines | -11 -10 -10 ---------- Run | Yrd Mat Sub Machines Disabled . | . . . Max in Single Turn . | . . . Machines Repaired . | . . . Machines Dismantled . | . . . Machines Sabotaged . | . . . Overloaded Fab Kills . | . . . Hacking | -11 -10 -10 --------- Run | Yrd Mat Sub Machines Accessed 5 | . 5 . Terminals 5 | . 5 . Fabricators . | . . . Repair Stations . | . . . Recycling Units . | . . . Scanalyzers . | . . . Garrison Access . | . . . Total Hacks 13 | . 13 . Successful 7 | . 7 . Failed 6 | . 6 . Catastrophic 3 | . 3 . Database Lockouts . | . . . Manual 13 | . 13 . Terminals 13 | . 13 . Fabricators . | . . . Repair Stations . | . . . Recycling Units . | . . . Scanalyzers . | . . . Garrison Access . | . . . Terminal Hacks 2 | . 2 . Robot Analysis 1 | . 1 . Unreport Threat 1 | . 1 . Fabricator Hacks . | . . . Repair Station Hacks . | . . . Recycling Unit Hacks . | . . . Scanalyzer . | . . . Garrison Access Hacks . | . . . Unauthorized Hacks 5 | . 5 . Terminals 5 | . 5 . Botnet 5 | . 5 . Fabricators . | . . . Repair Stations . | . . . Recycling Units . | . . . Scanalyzers . | . . . Garrison Access . | . . . Data Cores Recovered . | . . . Used . | . . . Hacking Detections 3 | . 3 . Full Trace Events 3 | . 3 . Feedback Events . | . . . Feedback Blocked . | . . . Robot Schematics Acquired . | . . . Robots Built . | . . . Authchips . | . . . Time . | . . . Total Robot Build Rating . | . . . Part Schematics Acquired . | . . . Parts Built . | . . . Authchips . | . . . Time . | . . . Total Part Build Rating . | . . . Parts Repaired . | . . . Time . | . . . Parts Recycled . | . . . Recycled Matter . | . . . Retrieved Matter . | . . . Retrieved Components . | . . . Parts Scanalyzed . | . . . Part Schematics Acquired . | . . . Parts Damaged . | . . . Bothacking | -11 -10 -10 ------------ Run | Yrd Mat Sub Used RIF Installer . | . . . Robots Hacked . | . . . Non-combat . | . . . Combat . | . . . Robot Hacks Applied . | . . . Relay Couplers Released . | . . . Fabnet Peak Effective % . | . . . Robots Rewired . | . . . Allies Hacked . | . . . Hacks Repelled . | . . . Allies | -11 -10 -10 -------- Run | Yrd Mat Sub Total Allies . | . . . Largest Group . | . . . Highest-Rated Group . | . . . Highest-Rated Ally . | . . . Total Orders . | . . . Ally Attacks . | . . . Total Damage . | . . . Kills . | . . . Allies Corrupted . | . . . Allies Melted . | . . . Intel | -11 -10 -10 ------- Run | Yrd Mat Sub Robot Analysis Total 1 | . 1 . Derelict Logs Recovered . | . . . Drone Launches . | . . . Drone Recoveries . | . . . Exploration | -11 -10 -10 ------------- Run | Yrd Mat Sub Turns Passed 1762 | 81 1455 226 Spaces Moved 863 | 71 670 122 Core 19 | 17 2 . Treads . | . . . Legs 54 | . 54 . Wheels 790 | 54 614 122 Hover . | . . . Flight . | . . . Fastest Speed 50 | 50 80 131 Average Speed 161 | 72 174 141 Slowest Speed 1400 | 80 1400 215 Overloaded Moves . | . . . Propulsion Burnouts . | . . . Robots Hopped . | . . . Cave-ins Triggered . | . . . Exploration Rate (%) 35 | 6 87 12 Regions Visited 2 Branch Regions 1 Pre-discovered Areas . | . . . Known Exits Taken . | . . . Unknown Exits Taken 2 | 1 1 . Scrap Searched 3 | . . 3 Spaces Dug 1 | . 1 . Terrain Destroyed 136 | . 39 97 Melee 1 | . 1 . Projectile . | . . . AOE 135 | . 38 97 Terrain Rammed . | . . . Walls Destroyed . | . . . Machines Disabled . | . . . Actions | -11 -10 -10 --------- Run | Yrd Mat Sub Total 1081 | 88 835 158 Wait 67 | . 49 18 Move 861 | 70 669 122 Hop . | . . . Pick Up 33 | 6 25 2 Fast Attach 9 | 5 3 1 Attach 8 | 1 7 . Detach 1 | . 1 . Swap 16 | . 12 4 Drop 7 | 1 6 . Fire 77 | 5 61 11 Melee 2 | . 2 . Ram . | . . . Kick . | . . . Crush . | . . . Escape Stasis . | . . . Rewire . | . . . Trap . | . . . Miscellaneous . | . . . Route ------- -11/Scrapyard -10/Materials (discovered 4 exits: [*Mat x2] / [*Min] / [*Sub]) -10/Subcaves History --------- Turn | Location | Event 2 | -11/Scrapyard | Met Revision 17 48 | -11/Scrapyard | Discovered new exit (range 8) 82 | -11/Scrapyard | Entered Materials 189 | -10/Materials | Discovered new exit (range 10) 224 | -10/Materials | Discovered new exit (range 16) 312 | -10/Materials | Build established: Mutant 342 | -10/Materials | Lost 3 parts (1p2n) 839 | -10/Materials | Discovered new exit (range 16) 1524 | -10/Materials | Discovered new exit (range 7) 1537 | -10/Materials | Entered Subcaves 1680 | -10/Subcaves | Disturbed a concealed Subdweller 1717 | -10/Subcaves | Core integrity fell below 50% 1751 | -10/Subcaves | Core integrity fell below 20% 1759 | -10/Subcaves | Ambushed by Subdweller buried in earth 1759 | -10/Subcaves | Ambushed by Subdweller buried in earth 1761 | -10/Subcaves | Ambushed by Subdweller buried in earth 1763 | -10/Subcaves | Destroyed self with Subdweller Shrapnel Launcher Last Messages --------------- 01741_ Found Sub. Monowheel. 01741_ Found 19 Matter. 01742_ Acquired 19 matter. 01742_ Searching scrap... 01742_ Found Flamer. 01742_ Found Mak. Axe. 01742_ Found 26 Matter. 01743_ Acquired 26 matter. 01746_ Acquired Sub. Shrapnel Launcher. 01751_ Grenade Launcher destroyed. 01757_ D6-FW4(R) destroyed. 01759_ A3-EGD(R) destroyed. 01759_ Wheel destroyed. 01759_ Destroyed Wheel. 01760_ LP-N42(R): "ARGHSUB!" 01760_ PK-DMA(R): "FREEEEDUMB!" 01760_ Sub. Monowheel destroyed. 01761_ PK-DMA(R) destroyed. 01762_ B2-RSK(R): "THANKSYOU!" 01762_ The unstable cave ceiling collapses. Map ----- +----------------------------------------------------+ | ???????????????????????????????????????? | | ???????????????????????????????????????? | | ???????????????????????????????????????? | | ???????????????????????????????????????? | | ???????????????????????????????????????? | | ???????????????????????????????????????? | | ???????????????????????????????????????? | | ???????????????????????????????????????? | | ???????????????????????????????????????? | | ???????????????????????????????????????? | | ?????????????????"?????????????????????? | | ????????????????" ??? ????????????##?? | | ???????????????" ? ?????????????# ? | | ???????????????" # ; ??????????## ? | | ??????#??????## #; ???? #### ? | | ?????????????#; ???? | | ?????????????#; ; ????? | | ?????????????#; ?????? | | ?????????##### ?????? ? | | ????????## %* ;##????????? | | ???????## R ] #??????????# | | ????????# #????????????# ## | | ????????# R ####?????????# ## | | ????????## #??????????## # | | ??##????# #?????#???## | | ????????# |%=@ #????#????# | | ????????# [! ] #?#####???# | | ??????#?## #; %& ### #???# # | | ???????#?#??## & #???## ## | | ?????????????## ###### ## | | ??????????????# # ## # # | | ???#?#???????## ##### # # | | ?????????????### #### ### # | | ???????????????######## ##### # | | ????????#????????????# #???## | | ????????#?????????#??# #?#??## | | ??????#??????#??????## ###?#??## | | ????????????#???#???# ##???????### | | ????????#???????????## #####????????#?# | | ??????????????#?#????####??????????????? | | ????????????????#??????????????????????? | | ?????????????????????#?????????????????? | | ????????????????????????#??????#???????? | | ???????#?????????????#?????????????????? | | ????????????????????#??#???????????????? | | ???????????????????????????????????????? | | ?????????????#?????????????#???????????? | | ???????????????????????????????????????? | | ???????????????????????#???????????????? | | ???????????????????????????????????????? | +----------------------------------------------------+ Best States ------------- Heat Dissipation 25 Energy Generation 10 Energy Capacity 250 Matter Stores 366 Matter Capacity 450 Sight Range 16 Terrain Scan Range 16 Terrain Scan Density 10 Evasion (%) 50 Item Schematics ----------------- None Robot Schematics ------------------ None Fabricated ------------ Nothing Alien Tech Used ----------------- None Achievements -------------- None Challenges ------------ None Game ------ Seed PointyNullCalibrator Manual? 0 Play Time 00:18:50 Cumulative 26.1 hours Start 2024.03.08 @ 19:32:51 End 2024.03.08 @ 19:53:38 Sessions 1 Manual Loads 0 Difficulty Rogue Special Mode None Game No. 25 Rogue 25 Adventurer 0 Explorer 0 Win Type - Total 0 Types 0/0/0/0/0/0/0/0/0 Lore% 22 Gallery% 24 Achievement% 22 Wizard Run 0 Options --------- Layout 1 ASCII 0 Keyboard 0 Movement Numpad Keybinds 0 Fullscreen 2 Font 24/X11 Map View 50x35 Zoom Use 0% Tactical HUD 1 Map Filters NONE Filters NONE Steam 0 RUN: 4b507f4a-3921-4862-9ab1-ffd467300d17